[Event "Late-Titled-Tuesday-Blitz-May-28-2024"]
[Site "Chess.com"]
[Date "2024.05.28"]
[Round "4"]
[White "Rakitic2010"]
[Black "olawsson"]
[Result "0-1"]
[WhiteElo "2471"]
[BlackElo "2170"]
[TimeControl "180+1"]
[EndTime "14:39:12 PDT"]
[Termination "olawsson won by checkmate"]

1. h3 {[%clk 0:02:54.6]} 1... d6 {[%clk 0:02:58.4]} 2. a3 {[%clk 0:02:54.7]}
2... e5 {[%clk 0:02:58.5]} 3. d3 {[%clk 0:02:53]} 3... f5 {[%clk 0:02:57.3]} 4.
Nc3 {[%clk 0:02:47.1]} 4... Nf6 {[%clk 0:02:57.3]} 5. Bg5 {[%clk 0:02:45.3]}
5... Be7 {[%clk 0:02:57.2]} 6. e4 {[%clk 0:02:45]} 6... O-O {[%clk 0:02:56.8]}
7. Nf3 {[%clk 0:02:44]} 7... c6 {[%clk 0:02:53]} 8. Be2 {[%clk 0:02:42.5]} 8...
f4 {[%clk 0:02:33.1]} 9. d4 {[%clk 0:02:38]} 9... h6 {[%clk 0:02:03.5]} 10. Bxf6
{[%clk 0:02:34.9]} 10... Bxf6 {[%clk 0:02:02.9]} 11. dxe5 {[%clk 0:02:31]} 11...
dxe5 {[%clk 0:02:03]} 12. Bc4+ {[%clk 0:02:27.6]} 12... Kh7 {[%clk 0:01:59.8]}
13. Qxd8 {[%clk 0:02:23.6]} 13... Rxd8 {[%clk 0:01:59.3]} 14. Ke2 {[%clk
0:02:24.5]} 14... b5 {[%clk 0:01:41.8]} 15. Bb3 {[%clk 0:02:22.9]} 15... a5
{[%clk 0:01:34.7]} 16. Rad1 {[%clk 0:02:17.3]} 16... Nd7 {[%clk 0:01:34.3]} 17.
Rd2 {[%clk 0:02:04.7]} 17... Ba6 {[%clk 0:01:31.2]} 18. Ke1 {[%clk 0:01:25.6]}
18... Nc5 {[%clk 0:01:28.6]} 19. Ba2 {[%clk 0:01:18.6]} 19... b4 {[%clk
0:01:27.7]} 20. axb4 {[%clk 0:01:09.5]} 20... axb4 {[%clk 0:01:27.5]} 21. Nd1
{[%clk 0:01:06.7]} 21... Nxe4 {[%clk 0:01:07.6]} 22. Rxd8 {[%clk 0:01:03.6]}
22... Rxd8 {[%clk 0:01:05.4]} 23. g3 {[%clk 0:00:58.1]} 23... fxg3 {[%clk
0:00:57.4]} 24. fxg3 {[%clk 0:00:57.6]} 24... Rxd1+ {[%clk 0:00:54.4]} 25. Kxd1
{[%clk 0:00:54.6]} 25... Nf2+ {[%clk 0:00:54.4]} 26. Ke1 {[%clk 0:00:51.8]}
26... Nxh1 {[%clk 0:00:55.3]} 27. c3 {[%clk 0:00:45.5]} 27... bxc3 {[%clk
0:00:52.1]} 28. Bb1+ {[%clk 0:00:45.5]} 28... g6 {[%clk 0:00:47.9]} 29. bxc3
{[%clk 0:00:44]} 29... Nxg3 {[%clk 0:00:48.1]} 30. Kf2 {[%clk 0:00:42.5]} 30...
Nf5 {[%clk 0:00:43.6]} 31. Nd2 {[%clk 0:00:42.4]} 31... Kg7 {[%clk 0:00:37.4]}
32. Ne4 {[%clk 0:00:40.2]} 32... Bc4 {[%clk 0:00:36.9]} 33. Nd2 {[%clk
0:00:37.2]} 33... Bd5 {[%clk 0:00:34.1]} 34. c4 {[%clk 0:00:37.2]} 34... Be6
{[%clk 0:00:34.3]} 35. Bd3 {[%clk 0:00:34.6]} 35... Bh4+ {[%clk 0:00:32.4]} 36.
Kf3 {[%clk 0:00:32.6]} 36... Nd4+ {[%clk 0:00:32.2]} 37. Kg2 {[%clk 0:00:29.1]}
37... Bf5 {[%clk 0:00:30.1]} 38. Bf1 {[%clk 0:00:29.1]} 38... Bg5 {[%clk
0:00:29]} 39. Nf3 {[%clk 0:00:16.2]} 39... Be4 {[%clk 0:00:29]} 40. c5 {[%clk
0:00:14.8]} 40... Bxf3+ {[%clk 0:00:28.4]} 41. Kg3 {[%clk 0:00:15.3]} 41... Bf4+
{[%clk 0:00:27.1]} 42. Kf2 {[%clk 0:00:14.9]} 42... Bd5 {[%clk 0:00:27.2]} 43.
h4 {[%clk 0:00:14.5]} 43... Kf6 {[%clk 0:00:27]} 44. h5 {[%clk 0:00:14.9]} 44...
gxh5 {[%clk 0:00:26.8]} 45. Bd3 {[%clk 0:00:15.5]} 45... e4 {[%clk 0:00:26.1]}
46. Ba6 {[%clk 0:00:14.6]} 46... e3+ {[%clk 0:00:26.1]} 47. Kf1 {[%clk
0:00:14.9]} 47... Ke5 {[%clk 0:00:24.8]} 48. Ke1 {[%clk 0:00:14.1]} 48... Bg3+
{[%clk 0:00:24.2]} 49. Kf1 {[%clk 0:00:13.7]} 49... e2+ {[%clk 0:00:22.1]} 50.
Bxe2 {[%clk 0:00:10.2]} 50... Nxe2 {[%clk 0:00:21.9]} 51. Kxe2 {[%clk
0:00:11.1]} 51... Kf4 {[%clk 0:00:19.8]} 52. Kd3 {[%clk 0:00:10.1]} 52... h4
{[%clk 0:00:19.9]} 53. Kd4 {[%clk 0:00:08.9]} 53... h3 {[%clk 0:00:19.9]} 54.
Kc3 {[%clk 0:00:09.8]} 54... h2 {[%clk 0:00:20.1]} 55. Kb4 {[%clk 0:00:10.7]}
55... h1=Q {[%clk 0:00:20.1]} 56. Ka5 {[%clk 0:00:11.6]} 56... Qb1 {[%clk
0:00:19.4]} 57. Ka6 {[%clk 0:00:11.6]} 57... Qb8 {[%clk 0:00:19.3]} 58. Ka5
{[%clk 0:00:11.7]} 58... Qb5# {[%clk 0:00:19.4]} 0-1

[Event "Late-Titled-Tuesday-Blitz-May-28-2024"]
[Site "Chess.com"]
[Date "2024.05.28"]
[Round "4"]
[White "AradNazari"]
[Black "Shuvalov"]
[Result "1-0"]
[WhiteElo "2790"]
[BlackElo "2555"]
[TimeControl "180+1"]
[EndTime "14:39:17 PDT"]
[Termination "AradNazari won by resignation"]

1. e4 {[%clk 0:03:00.9]} 1... e6 {[%clk 0:02:56.7]} 2. d4 {[%clk 0:02:58.4]}
2... d5 {[%clk 0:02:56.7]} 3. e5 {[%clk 0:02:58.9]} 3... c5 {[%clk 0:02:56.4]}
4. c3 {[%clk 0:02:59.5]} 4... Nc6 {[%clk 0:02:56.8]} 5. Nf3 {[%clk 0:03:00]}
5... Qb6 {[%clk 0:02:57.4]} 6. a3 {[%clk 0:02:58.9]} 6... Bd7 {[%clk 0:02:57.1]}
7. b4 {[%clk 0:02:58.1]} 7... cxd4 {[%clk 0:02:57]} 8. cxd4 {[%clk 0:02:58.6]}
8... Rc8 {[%clk 0:02:56.8]} 9. Bb2 {[%clk 0:02:58.9]} 9... Nge7 {[%clk
0:02:56.3]} 10. Bd3 {[%clk 0:02:55.2]} 10... Na5 {[%clk 0:02:51.8]} 11. Nbd2
{[%clk 0:02:53.7]} 11... Nc4 {[%clk 0:02:51.2]} 12. Bc1 {[%clk 0:02:47.5]} 12...
Nf5 {[%clk 0:02:37]} 13. Nxc4 {[%clk 0:02:40.8]} 13... dxc4 {[%clk 0:02:35.9]}
14. Bxf5 {[%clk 0:02:31.6]} 14... exf5 {[%clk 0:02:36.8]} 15. O-O {[%clk
0:02:31.9]} 15... Be7 {[%clk 0:02:34.6]} 16. d5 {[%clk 0:02:28.3]} 16... O-O
{[%clk 0:02:33.9]} 17. Be3 {[%clk 0:02:15]} 17... Qa6 {[%clk 0:02:16.9]} 18. d6
{[%clk 0:01:31.7]} 18... Bd8 {[%clk 0:02:15.9]} 19. a4 {[%clk 0:01:32]} 19... c3
{[%clk 0:01:57.7]} 20. b5 {[%clk 0:01:28.7]} 20... Qa5 {[%clk 0:01:57.8]} 21.
Nd4 {[%clk 0:01:26.3]} 21... Bb6 {[%clk 0:01:49.3]} 22. Nc2 {[%clk 0:01:15.6]}
22... Rfe8 {[%clk 0:01:40.6]} 23. Bxb6 {[%clk 0:01:03.9]} 23... Qxb6 {[%clk
0:01:38.5]} 24. Re1 {[%clk 0:01:04.4]} 24... Qc5 {[%clk 0:01:36.7]} 25. Qe2
{[%clk 0:00:54]} 25... f6 {[%clk 0:01:23.7]} 26. Qf3 {[%clk 0:00:39.3]} 26...
Rxe5 {[%clk 0:00:57]} 27. Qxb7 {[%clk 0:00:38.4]} 27... Rxe1+ {[%clk 0:00:53.1]}
28. Rxe1 {[%clk 0:00:39.3]} 28... Qxd6 {[%clk 0:00:52.6]} 29. Qxa7 {[%clk
0:00:39.1]} 29... Qd2 {[%clk 0:00:44.5]} 30. b6 {[%clk 0:00:38.2]} 30... Bc6
{[%clk 0:00:37.4]} 31. b7 {[%clk 0:00:32.9]} 31... Bxb7 {[%clk 0:00:37.2]} 32.
Qxb7 {[%clk 0:00:32.9]} 32... Rf8 {[%clk 0:00:36.4]} 33. Qb3+ {[%clk 0:00:29]}
33... Kh8 {[%clk 0:00:36.6]} 34. h4 {[%clk 0:00:26.3]} 34... h6 {[%clk
0:00:36.1]} 35. h5 {[%clk 0:00:19.4]} 35... f4 {[%clk 0:00:34.1]} 36. a5 {[%clk
0:00:12.3]} 36... Ra8 {[%clk 0:00:32.1]} 37. a6 {[%clk 0:00:09.9]} 37... Kh7
{[%clk 0:00:26.8]} 38. Qb7 {[%clk 0:00:09.7]} 38... Rg8 {[%clk 0:00:20.6]} 39.
Qe4+ {[%clk 0:00:09.8]} 39... Kh8 {[%clk 0:00:19.5]} 40. a7 {[%clk 0:00:10.3]}
40... Qd8 {[%clk 0:00:16.6]} 41. Ra1 {[%clk 0:00:09.5]} 41... Qa8 {[%clk
0:00:16.4]} 42. Qxa8 {[%clk 0:00:09.7]} 42... Rxa8 {[%clk 0:00:17.3]} 43. Ra3
{[%clk 0:00:09.6]} 43... Kg8 {[%clk 0:00:16.8]} 44. Kf1 {[%clk 0:00:10.3]} 44...
Kf7 {[%clk 0:00:17.2]} 45. Ke2 {[%clk 0:00:11]} 45... Ke6 {[%clk 0:00:17.7]} 46.
Nb4 {[%clk 0:00:11.3]} 46... Kd7 {[%clk 0:00:16.9]} 47. Nd5 {[%clk 0:00:10.8]}
47... Kc6 {[%clk 0:00:16.9]} 48. Nxc3 {[%clk 0:00:09.4]} 48... Kb7 {[%clk
0:00:15.9]} 49. Nb5 {[%clk 0:00:10]} 49... Kb6 {[%clk 0:00:15.9]} 50. Nd6 {[%clk
0:00:09]} 50... Kc7 {[%clk 0:00:14.5]} 51. Nf5 {[%clk 0:00:08.5]} 51... Kb7
{[%clk 0:00:14]} 52. Kf3 {[%clk 0:00:08.5]} 52... Rxa7 {[%clk 0:00:13.9]} 53.
Rxa7+ {[%clk 0:00:09.2]} 53... Kxa7 {[%clk 0:00:14.8]} 54. Nxg7 {[%clk
0:00:09.8]} 54... Kb7 {[%clk 0:00:15.4]} 55. Nf5 {[%clk 0:00:10.1]} 55... Kc6
{[%clk 0:00:15.9]} 56. Nxh6 {[%clk 0:00:11]} 1-0

[Event "Late-Titled-Tuesday-Blitz-May-28-2024"]
[Site "Chess.com"]
[Date "2024.05.28"]
[Round "4"]
[White "ChessSwole"]
[Black "David_ATM"]
[Result "1-0"]
[WhiteElo "2686"]
[BlackElo "2423"]
[TimeControl "180+1"]
[EndTime "14:39:18 PDT"]
[Termination "ChessSwole won by resignation"]

1. Nf3 {[%clk 0:03:00.9]} 1... d5 {[%clk 0:02:59.6]} 2. e3 {[%clk 0:03:00.3]}
2... Nf6 {[%clk 0:02:59.5]} 3. c4 {[%clk 0:03:00.6]} 3... c6 {[%clk 0:02:59.7]}
4. Nc3 {[%clk 0:03:00.5]} 4... Bf5 {[%clk 0:03:00.2]} 5. cxd5 {[%clk 0:02:58.1]}
5... Nxd5 {[%clk 0:03:01.1]} 6. Qb3 {[%clk 0:02:56.1]} 6... Nxc3 {[%clk
0:02:58.3]} 7. Qxb7 {[%clk 0:02:46.7]} 7... Nd7 {[%clk 0:02:58.3]} 8. bxc3
{[%clk 0:02:39.9]} 8... Qc8 {[%clk 0:02:52.9]} 9. Ba6 {[%clk 0:02:33.9]} 9...
Nc5 {[%clk 0:02:45.8]} 10. Qxc8+ {[%clk 0:02:33.2]} 10... Bxc8 {[%clk
0:02:46.7]} 11. Bxc8 {[%clk 0:02:33.1]} 11... Rxc8 {[%clk 0:02:47.6]} 12. Ba3
{[%clk 0:02:29.6]} 12... e6 {[%clk 0:02:44.5]} 13. Ke2 {[%clk 0:02:26.8]} 13...
Na4 {[%clk 0:02:18.3]} 14. Bxf8 {[%clk 0:02:24.1]} 14... Kxf8 {[%clk 0:02:19.2]}
15. Rab1 {[%clk 0:02:23.9]} 15... Nb6 {[%clk 0:02:19.6]} 16. Rb4 {[%clk
0:02:18.7]} 16... Ke7 {[%clk 0:02:19.9]} 17. a4 {[%clk 0:02:18.2]} 17... Rc7
{[%clk 0:02:18.5]} 18. Rhb1 {[%clk 0:02:16.3]} 18... c5 {[%clk 0:02:10.6]} 19.
Rh4 {[%clk 0:02:06.3]} 19... Nd5 {[%clk 0:01:06.3]} 20. a5 {[%clk 0:02:01.1]}
20... h6 {[%clk 0:00:51.7]} 21. Ra4 {[%clk 0:01:58.8]} 21... Rd8 {[%clk
0:00:51.9]} 22. Ne5 {[%clk 0:01:47.1]} 22... f6 {[%clk 0:00:38.6]} 23. Nc4
{[%clk 0:01:47.3]} 23... e5 {[%clk 0:00:35.8]} 24. a6 {[%clk 0:01:44.8]} 24...
Rdd7 {[%clk 0:00:19]} 25. Rb5 {[%clk 0:01:41.4]} 25... Ke6 {[%clk 0:00:17.7]}
26. Raa5 {[%clk 0:01:38]} 26... Rc8 {[%clk 0:00:10.7]} 27. Rxc5 {[%clk
0:01:37.2]} 27... Rcd8 {[%clk 0:00:11.4]} 28. Rc6+ {[%clk 0:01:36.5]} 28... Ke7
{[%clk 0:00:10.1]} 29. d4 {[%clk 0:01:28.3]} 29... Nxc3+ {[%clk 0:00:06.9]} 30.
Kd3 {[%clk 0:01:25.5]} 30... exd4 {[%clk 0:00:07.3]} 31. e4 {[%clk 0:01:26.2]}
31... Nd1 {[%clk 0:00:04.6]} 32. Ra2 {[%clk 0:01:18.7]} 32... Nc3 {[%clk
0:00:04.5]} 33. Rb2 {[%clk 0:01:18.7]} 33... Na4 {[%clk 0:00:04.1]} 34. Rb7
{[%clk 0:01:15.4]} 34... Nb6 {[%clk 0:00:01.7]} 35. Nxb6 {[%clk 0:01:12.3]}
35... axb6 {[%clk 0:00:02.6]} 36. Rcxb6 {[%clk 0:01:11.4]} 36... Ra8 {[%clk
0:00:01.5]} 37. Rxd7+ {[%clk 0:01:08.5]} 37... Kxd7 {[%clk 0:00:02.4]} 38. Kxd4
{[%clk 0:01:09.2]} 38... Kc7 {[%clk 0:00:02.8]} 39. Kc5 {[%clk 0:01:09.4]} 39...
Re8 {[%clk 0:00:01.5]} 40. Rb7+ {[%clk 0:00:58.8]} 40... Kc8 {[%clk 0:00:01.9]}
41. f3 {[%clk 0:00:58.3]} 41... Re5+ {[%clk 0:00:02.2]} 42. Kd4 {[%clk
0:00:49.6]} 42... Ra5 {[%clk 0:00:02.5]} 43. Rxg7 {[%clk 0:00:50.1]} 43... Rxa6
{[%clk 0:00:02.5]} 44. Rg6 {[%clk 0:00:50.8]} 44... Kd7 {[%clk 0:00:02.5]} 45.
Rxh6 {[%clk 0:00:50.5]} 45... Ke6 {[%clk 0:00:02.7]} 46. Ke3 {[%clk 0:00:49.8]}
46... Ra2 {[%clk 0:00:02.5]} 47. Rg6 {[%clk 0:00:49.7]} 47... Kf7 {[%clk
0:00:02.4]} 48. Rg4 {[%clk 0:00:49.1]} 48... f5 {[%clk 0:00:02.4]} 49. exf5
{[%clk 0:00:49.3]} 49... Kf6 {[%clk 0:00:03]} 50. Kf4 {[%clk 0:00:45.6]} 50...
Ra4+ {[%clk 0:00:02.8]} 51. Kg3 {[%clk 0:00:46.2]} 51... Ra2 {[%clk 0:00:03.3]}
52. Rf4 {[%clk 0:00:44.9]} 52... Ra1 {[%clk 0:00:03.7]} 53. h4 {[%clk
0:00:45.2]} 53... Ra8 {[%clk 0:00:04.1]} 54. Rg4 {[%clk 0:00:43.7]} 54... Kxf5
{[%clk 0:00:03.5]} 55. Rg5+ {[%clk 0:00:44.1]} 55... Kf6 {[%clk 0:00:04]} 56.
Kg4 {[%clk 0:00:44.4]} 56... Ra4+ {[%clk 0:00:03.8]} 57. f4 {[%clk 0:00:44.7]}
57... Ra2 {[%clk 0:00:04.1]} 58. g3 {[%clk 0:00:45.1]} 58... Ra1 {[%clk
0:00:04.5]} 59. h5 {[%clk 0:00:45.3]} 59... Rh1 {[%clk 0:00:05.4]} 60. Rg6+
{[%clk 0:00:45]} 60... Kf7 {[%clk 0:00:05.4]} 61. Kg5 {[%clk 0:00:45.7]} 61...
Rh3 {[%clk 0:00:05.6]} 62. g4 {[%clk 0:00:46]} 62... Ra3 {[%clk 0:00:04.7]} 63.
f5 {[%clk 0:00:46.4]} 63... Ra8 {[%clk 0:00:04.7]} 64. h6 {[%clk 0:00:46.6]}
64... Ra1 {[%clk 0:00:03.1]} 65. Rg7+ {[%clk 0:00:46.9]} 65... Kf8 {[%clk
0:00:03.2]} 66. Kg6 {[%clk 0:00:47.3]} 66... Rh1 {[%clk 0:00:03.1]} 67. g5
{[%clk 0:00:47.2]} 67... Rh2 {[%clk 0:00:03.7]} 68. f6 {[%clk 0:00:46.6]} 68...
Rh1 {[%clk 0:00:04.6]} 69. h7 {[%clk 0:00:46.6]} 69... Ke8 {[%clk 0:00:02.2]}
70. Rg8+ {[%clk 0:00:44.8]} 1-0

[Event "Late-Titled-Tuesday-Blitz-May-28-2024"]
[Site "Chess.com"]
[Date "2024.05.28"]
[Round "4"]
[White "TheAlienParty"]
[Black "korkmaz16"]
[Result "1-0"]
[WhiteElo "2387"]
[BlackElo "2535"]
[TimeControl "180+1"]
[EndTime "14:39:18 PDT"]
[Termination "TheAlienParty won on time"]

1. c4 {[%clk 0:02:54.1]} 1... c6 {[%clk 0:02:58.9]} 2. Nf3 {[%clk 0:02:52.8]}
2... d5 {[%clk 0:02:58.6]} 3. e3 {[%clk 0:02:52.7]} 3... Nf6 {[%clk 0:02:58.2]}
4. b3 {[%clk 0:02:52.5]} 4... Bf5 {[%clk 0:02:53.6]} 5. Bb2 {[%clk 0:02:51.5]}
5... e6 {[%clk 0:02:53.5]} 6. d3 {[%clk 0:02:51.1]} 6... h6 {[%clk 0:02:52.9]}
7. Be2 {[%clk 0:02:51.1]} 7... Nbd7 {[%clk 0:02:52.1]} 8. Nbd2 {[%clk 0:02:51]}
8... Bh7 {[%clk 0:02:52.2]} 9. Qc2 {[%clk 0:02:50.7]} 9... Be7 {[%clk
0:02:47.4]} 10. a3 {[%clk 0:02:50.6]} 10... O-O {[%clk 0:02:47.4]} 11. b4 {[%clk
0:02:50.6]} 11... Re8 {[%clk 0:02:46]} 12. O-O {[%clk 0:02:50.4]} 12... Bd6
{[%clk 0:02:42.7]} 13. e4 {[%clk 0:02:46]} 13... Qc7 {[%clk 0:02:27.7]} 14. Rfc1
{[%clk 0:02:40.1]} 14... dxe4 {[%clk 0:02:24.7]} 15. dxe4 {[%clk 0:02:39]} 15...
Ng4 {[%clk 0:02:14.4]} 16. h3 {[%clk 0:02:35.3]} 16... Nge5 {[%clk 0:02:14]} 17.
c5 {[%clk 0:02:32.2]} 17... Nxf3+ {[%clk 0:02:13.9]} 18. Bxf3 {[%clk 0:02:29.2]}
18... Bf4 {[%clk 0:02:13]} 19. g3 {[%clk 0:02:24.5]} 19... Bg5 {[%clk
0:02:08.3]} 20. Bg2 {[%clk 0:02:21.6]} 20... Bf6 {[%clk 0:02:04.1]} 21. Nc4
{[%clk 0:02:16.1]} 21... Be7 {[%clk 0:01:32]} 22. Rd1 {[%clk 0:02:14.9]} 22...
Red8 {[%clk 0:01:25.4]} 23. Qc3 {[%clk 0:02:09.7]} 23... Bf8 {[%clk 0:01:17.6]}
24. Rd6 {[%clk 0:02:06.9]} 24... e5 {[%clk 0:01:07.2]} 25. Rad1 {[%clk
0:01:59.5]} 25... f6 {[%clk 0:01:06.8]} 26. R6d2 {[%clk 0:01:46.8]} 26... Kh8
{[%clk 0:01:04.6]} 27. Nd6 {[%clk 0:01:46.2]} 27... Bg8 {[%clk 0:01:04.5]} 28.
h4 {[%clk 0:01:45.2]} 28... b6 {[%clk 0:01:02.2]} 29. Bh3 {[%clk 0:01:43.8]}
29... bxc5 {[%clk 0:01:02]} 30. Nf7+ {[%clk 0:01:37.4]} 30... Bxf7 {[%clk
0:01:00.7]} 31. Rxd7 {[%clk 0:01:37.2]} 31... Qb6 {[%clk 0:00:53.9]} 32. bxc5
{[%clk 0:01:36.7]} 32... Bxc5 {[%clk 0:00:36.3]} 33. Rxd8+ {[%clk 0:01:35.7]}
33... Rxd8 {[%clk 0:00:35.6]} 34. Rxd8+ {[%clk 0:01:34.9]} 34... Qxd8 {[%clk
0:00:35.6]} 35. Qxc5 {[%clk 0:01:34.6]} 35... Qd1+ {[%clk 0:00:34.7]} 36. Kh2
{[%clk 0:01:32.2]} 36... Qf3 {[%clk 0:00:23.1]} 37. Bg2 {[%clk 0:01:12.5]} 37...
Qe2 {[%clk 0:00:22.4]} 38. Bc1 {[%clk 0:01:04.3]} 38... Kh7 {[%clk 0:00:18.6]}
39. Be3 {[%clk 0:01:02.9]} 39... a6 {[%clk 0:00:17.4]} 40. Bh3 {[%clk
0:01:00.7]} 40... Bg6 {[%clk 0:00:16.8]} 41. Bf5 {[%clk 0:00:58.4]} 41... Bxf5
{[%clk 0:00:16.7]} 42. exf5 {[%clk 0:00:58.4]} 42... Qb5 {[%clk 0:00:16.8]} 43.
Qxb5 {[%clk 0:00:53.3]} 43... cxb5 {[%clk 0:00:17.1]} 44. Kg2 {[%clk 0:00:50.8]}
44... g6 {[%clk 0:00:17.7]} 45. g4 {[%clk 0:00:48.6]} 45... h5 {[%clk
0:00:17.9]} 46. fxg6+ {[%clk 0:00:47.1]} 46... Kxg6 {[%clk 0:00:18]} 47. f3
{[%clk 0:00:45.8]} 47... hxg4 {[%clk 0:00:18.2]} 48. fxg4 {[%clk 0:00:45.8]}
48... a5 {[%clk 0:00:18.4]} 49. Bd2 {[%clk 0:00:44.6]} 49... b4 {[%clk
0:00:18.6]} 50. axb4 {[%clk 0:00:44.2]} 50... axb4 {[%clk 0:00:19.2]} 51. Bxb4
{[%clk 0:00:44.2]} 51... f5 {[%clk 0:00:19.8]} 52. g5 {[%clk 0:00:43.9]} 52...
Kh5 {[%clk 0:00:20.1]} 53. Kh3 {[%clk 0:00:43.6]} 53... e4 {[%clk 0:00:20.3]}
54. Bd2 {[%clk 0:00:43.2]} 54... Kg6 {[%clk 0:00:20.8]} 55. Kg3 {[%clk
0:00:41.3]} 55... Kh5 {[%clk 0:00:19.8]} 56. Kf4 {[%clk 0:00:39.8]} 56... Kg6
{[%clk 0:00:20.3]} 57. Be3 {[%clk 0:00:32.7]} 1-0

[Event "Late-Titled-Tuesday-Blitz-May-28-2024"]
[Site "Chess.com"]
[Date "2024.05.28"]
[Round "4"]
[White "stollenmonster"]
[Black "Polish_fighter3000"]
[Result "0-1"]
[WhiteElo "2855"]
[BlackElo "3124"]
[TimeControl "180+1"]
[EndTime "14:39:27 PDT"]
[Termination "Polish_fighter3000 won by resignation"]

1. e4 {[%clk 0:03:00.9]} 1... c5 {[%clk 0:02:47.7]} 2. Nf3 {[%clk 0:03:00.2]}
2... e6 {[%clk 0:02:46.6]} 3. Be2 {[%clk 0:02:59.6]} 3... Nc6 {[%clk 0:02:45.9]}
4. c4 {[%clk 0:03:00.1]} 4... Nf6 {[%clk 0:02:42.1]} 5. Nc3 {[%clk 0:02:59.9]}
5... a6 {[%clk 0:02:06.2]} 6. O-O {[%clk 0:02:57.5]} 6... Qc7 {[%clk 0:02:06.3]}
7. d4 {[%clk 0:02:55.9]} 7... cxd4 {[%clk 0:02:07.2]} 8. Nxd4 {[%clk 0:02:56.2]}
8... Bb4 {[%clk 0:02:01.5]} 9. Nxc6 {[%clk 0:02:54.2]} 9... bxc6 {[%clk
0:02:02.4]} 10. Bg5 {[%clk 0:02:51.5]} 10... Bxc3 {[%clk 0:01:48.3]} 11. bxc3
{[%clk 0:02:51.3]} 11... Nxe4 {[%clk 0:01:48.7]} 12. Qd4 {[%clk 0:02:47.5]}
12... Nxg5 {[%clk 0:01:49]} 13. Qxg7 {[%clk 0:02:47.5]} 13... Nh3+ {[%clk
0:01:49]} 14. gxh3 {[%clk 0:02:44]} 14... Rf8 {[%clk 0:01:49.4]} 15. f4 {[%clk
0:02:43.1]} 15... c5 {[%clk 0:01:38.2]} 16. Bf3 {[%clk 0:02:31.4]} 16... Bb7
{[%clk 0:01:35.8]} 17. Rab1 {[%clk 0:02:21.2]} 17... Bxf3 {[%clk 0:01:11.2]} 18.
Rxf3 {[%clk 0:02:22.1]} 18... O-O-O {[%clk 0:01:10.7]} 19. Qe5 {[%clk
0:02:15.2]} 19... Qxe5 {[%clk 0:01:03.5]} 20. fxe5 {[%clk 0:02:16.1]} 20... Rg8+
{[%clk 0:00:53]} 21. Kf2 {[%clk 0:02:13.6]} 21... Rdf8 {[%clk 0:00:45.8]} 22.
Rg3 {[%clk 0:01:53.8]} 22... Rg6 {[%clk 0:00:32.3]} 23. Rbg1 {[%clk 0:01:49.7]}
23... Kc7 {[%clk 0:00:29.6]} 24. Ke3 {[%clk 0:01:49.1]} 24... d6 {[%clk
0:00:22]} 25. Ke4 {[%clk 0:01:43.6]} 25... dxe5 {[%clk 0:00:16.9]} 26. Kxe5
{[%clk 0:01:42.4]} 26... Kd7 {[%clk 0:00:17]} 27. h4 {[%clk 0:01:37.7]} 27...
Ke7 {[%clk 0:00:11.8]} 28. Rb1 {[%clk 0:01:31.8]} 28... f6+ {[%clk 0:00:09.6]}
29. Kf4 {[%clk 0:01:31.2]} 29... Rd8 {[%clk 0:00:06.6]} 30. h5 {[%clk
0:01:25.2]} 30... Rxg3 {[%clk 0:00:06.4]} 31. hxg3 {[%clk 0:01:25.9]} 31... h6
{[%clk 0:00:05.2]} 32. Rb7+ {[%clk 0:01:25.5]} 32... Rd7 {[%clk 0:00:05.3]} 33.
Rb8 {[%clk 0:01:24.2]} 33... Rd3 {[%clk 0:00:04.4]} 34. Rb7+ {[%clk 0:01:18.3]}
34... Kd6 {[%clk 0:00:03.6]} 35. Rb6+ {[%clk 0:01:17.8]} 35... Kd7 {[%clk
0:00:03.1]} 36. Rb7+ {[%clk 0:01:11.3]} 36... Kd6 {[%clk 0:00:02.4]} 37. Rf7
{[%clk 0:01:11.1]} 37... f5 {[%clk 0:00:01.5]} 38. Rf6 {[%clk 0:01:04.2]} 38...
Rxc3 {[%clk 0:00:01.2]} 39. Rxh6 {[%clk 0:01:04.6]} 39... Rxc4+ {[%clk
0:00:02.1]} 40. Kf3 {[%clk 0:01:04.8]} 40... Rc3+ {[%clk 0:00:02]} 41. Kf4
{[%clk 0:01:04.8]} 41... Rc4+ {[%clk 0:00:02.4]} 42. Kf3 {[%clk 0:01:05.2]}
42... Ke5 {[%clk 0:00:02.1]} 43. Rh8 {[%clk 0:01:04.6]} 43... Rc3+ {[%clk
0:00:01.9]} 44. Kg2 {[%clk 0:01:05]} 44... Kf6 {[%clk 0:00:01.7]} 45. Rg8 {[%clk
0:01:02]} 45... Rc2+ {[%clk 0:00:01.6]} 46. Kh3 {[%clk 0:01:00.4]} 46... Rc1
{[%clk 0:00:01.9]} 47. Kg2 {[%clk 0:01:00.2]} 47... Rb1 {[%clk 0:00:02.3]} 48.
h6 {[%clk 0:00:45.1]} 48... Rb7 {[%clk 0:00:01.8]} 49. Rf8+ {[%clk 0:00:40.1]}
49... Rf7 {[%clk 0:00:02]} 50. Rg8 {[%clk 0:00:35]} 50... Rh7 {[%clk 0:00:02]}
51. Rc8 {[%clk 0:00:32.4]} 51... Rxh6 {[%clk 0:00:02.1]} 52. Rxc5 {[%clk
0:00:33]} 52... Rg6 {[%clk 0:00:02.6]} 53. Ra5 {[%clk 0:00:32.8]} 53... f4
{[%clk 0:00:02.5]} 54. Rxa6 {[%clk 0:00:33]} 54... Rxg3+ {[%clk 0:00:02.4]} 55.
Kf2 {[%clk 0:00:33.5]} 55... Kf5 {[%clk 0:00:03.2]} 56. Ra8 {[%clk 0:00:32]}
56... e5 {[%clk 0:00:03.4]} 57. a4 {[%clk 0:00:32.4]} 57... Ra3 {[%clk
0:00:03.1]} 58. a5 {[%clk 0:00:31.9]} 58... Ra2+ {[%clk 0:00:03.7]} 59. Ke1
{[%clk 0:00:32]} 59... Ke4 {[%clk 0:00:04]} 60. a6 {[%clk 0:00:31.7]} 60... Ke3
{[%clk 0:00:04.5]} 61. Kd1 {[%clk 0:00:31.9]} 61... e4 {[%clk 0:00:05]} 62. Kc1
{[%clk 0:00:31.7]} 62... f3 {[%clk 0:00:05.4]} 63. Kb1 {[%clk 0:00:31.3]} 63...
Ra5 {[%clk 0:00:05.9]} 64. Kb2 {[%clk 0:00:26.8]} 64... f2 {[%clk 0:00:06.1]}
0-1